[Event "Titled Tuesday Blitz June 27 Early 2023"]
[White "Lehtosaari, Mauri"]
[Black "Adireddy Arjun"]
[WhiteFideId "501999"]
[BlackFideId "25647709"]
[WhiteElo "2522"]
[BlackElo "2330"]
[Result "0-1"]
[Round "4"]
[TimeControl "180+2"]
[Date "2023.06.27"]
[WhiteClock "0:00:00"]
[BlackClock "0:00:02"]
[Board "166"]

1. d4 {[%clk 0:02:49]}  d5 {[%clk 0:02:54]} 2. f4 {[%clk 0:02:49]}  Nf6 {[%clk 0:02:51]} 3. Nf3 {[%clk 0:02:46]}  g6 {[%clk 0:02:48]} 4. Be3 {[%clk 0:02:44]}  Bg7 {[%clk 0:02:46]} 5. Bf2 {[%clk 0:02:42]}  Ne4 {[%clk 0:02:45]} 6. e3 {[%clk 0:02:41]}  Nxf2 {[%clk 0:02:42]} 7. Kxf2 {[%clk 0:02:40]}  c5 {[%clk 0:02:42]} 8. c3 {[%clk 0:02:40]}  Nc6 {[%clk 0:02:41]} 9. Nbd2 {[%clk 0:02:39]}  cxd4 {[%clk 0:02:40]} 10. cxd4 {[%clk 0:02:36]}  O-O {[%clk 0:02:40]} 11. Bb5 {[%clk 0:02:31]}  f6 {[%clk 0:02:37]} 12. Rf1 {[%clk 0:02:27]}  e5 {[%clk 0:02:34]} 13. Kg1 {[%clk 0:02:11]}  e4 {[%clk 0:02:31]} 14. Ne1 {[%clk 0:02:05]}  Ne7 {[%clk 0:02:24]} 15. Qb3 {[%clk 0:02:02]}  Qd6 {[%clk 0:02:21]} 16. Nxe4 {[%clk 0:01:57]}  Qb6 {[%clk 0:02:10]} 17. Nc3 {[%clk 0:01:55]}  Be6 {[%clk 0:02:08]} 18. Be2 {[%clk 0:01:47]}  Qxb3 {[%clk 0:01:54]} 19. axb3 {[%clk 0:01:48]}  Bf7 {[%clk 0:01:48]} 20. Nd3 {[%clk 0:01:45]}  Nf5 {[%clk 0:01:46]} 21. Kf2 {[%clk 0:01:43]}  Rfe8 {[%clk 0:01:44]} 22. Nd1 {[%clk 0:01:41]}  Rec8 {[%clk 0:01:36]} 23. Rc1 {[%clk 0:01:22]}  Rxc1 {[%clk 0:01:34]} 24. Nxc1 {[%clk 0:01:22]}  Rc8 {[%clk 0:01:32]} 25. Nc3 {[%clk 0:01:23]}  Re8 {[%clk 0:01:32]} 26. Nd1 {[%clk 0:01:06]}  Rc8 {[%clk 0:01:28]} 27. Nc3 {[%clk 0:00:49]}  Re8 {[%clk 0:01:26]} 28. Bf3 {[%clk 0:00:47]}  Rxe3 {[%clk 0:01:04]} 29. Nxd5 {[%clk 0:00:39]}  Rxf3+ {[%clk 0:01:01]} 30. Kxf3 {[%clk 0:00:39]}  Bxd5+ {[%clk 0:01:01]} 31. Kf2 {[%clk 0:00:38]}  Nxd4 {[%clk 0:00:37]} 32. Rd1 {[%clk 0:00:38]}  f5 {[%clk 0:00:37]} 33. Ne2 {[%clk 0:00:37]}  Nxe2 {[%clk 0:00:37]} 34. Rxd5 {[%clk 0:00:36]}  Nxf4 {[%clk 0:00:37]} 35. Rd8+ {[%clk 0:00:36]}  Bf8 {[%clk 0:00:35]} 36. Rd7 {[%clk 0:00:36]}  b5 {[%clk 0:00:26]} 37. Kf3 {[%clk 0:00:31]}  Ne6 {[%clk 0:00:26]} 38. Rxa7 {[%clk 0:00:31]}  Nd4+ {[%clk 0:00:25]} 39. Kf4 {[%clk 0:00:26]}  Nxb3 {[%clk 0:00:25]} 40. Ke5 {[%clk 0:00:25]}  Nc5 {[%clk 0:00:21]} 41. Kd5 {[%clk 0:00:23]}  Nd3 {[%clk 0:00:18]} 42. Rb7 {[%clk 0:00:15]}  b4 {[%clk 0:00:17]} 43. b3 {[%clk 0:00:15]}  Nf4+ {[%clk 0:00:15]} 44. Ke5 {[%clk 0:00:13]}  Nxg2 {[%clk 0:00:14]} 45. Ke6 {[%clk 0:00:10]}  Nf4+ {[%clk 0:00:14]} 46. Kd7 {[%clk 0:00:09]}  Nd3 {[%clk 0:00:10]} 47. Ke8 {[%clk 0:00:09]}  f4 {[%clk 0:00:04]} 48. Rf7 {[%clk 0:00:07]}  Bc5 {[%clk 0:00:03]} 49. Rd7 {[%clk 0:00:03]}  Ne5 {[%clk 0:00:02]} 50. Rd5 {[%clk 0:00:03]}  f3 {[%clk 0:00:02]} 51. Rxc5 {[%clk 0:00:01]}  f2 {[%clk 0:00:02]} 52. Rc1 {[%clk 0:00:02]}  Nd3 {[%clk 0:00:02]} 53. Rf1 {[%clk 0:00:03]}  g5 {[%clk 0:00:02]} 54. Ke7 {[%clk 0:00:02]}  Kg7 {[%clk 0:00:02]} 55. Ke6 {[%clk 0:00:03]}  Kg6 {[%clk 0:00:03]} 56. Kd5 {[%clk 0:00:03]}  Kf5 {[%clk 0:00:01]} 57. Kc4 {[%clk 0:00:04]}  Kf4 {[%clk 0:00:00]} 58. Kxd3 {[%clk 0:00:04]}  Kf3 {[%clk 0:00:01]} 59. Kd2 {[%clk 0:00:02]}  g4 {[%clk 0:00:02]} 60. Kd3 {[%clk 0:00:00]}  h5 {[%clk 0:00:02]} 0-1


[Site "https://www.chess.com"]

[Event "Titled Tuesday Blitz June 27 Early 2023"]
[White "Mogirzan, Matei-Valeriu"]
[Black "Osinovsky, Stepan"]
[WhiteFideId "1257455"]
[BlackFideId "4157354"]
[WhiteElo "2518"]
[BlackElo "2317"]
[Result "1-0"]
[Round "4"]
[TimeControl "180+2"]
[Date "2023.06.27"]
[WhiteClock "0:00:03"]
[BlackClock "0:00:00"]
[Board "169"]

1. e4 {[%clk 0:03:00]}  e5 {[%clk 0:02:56]} 2. Nf3 {[%clk 0:02:58]}  Nc6 {[%clk 0:02:54]} 3. Bc4 {[%clk 0:02:58]}  Nf6 {[%clk 0:02:54]} 4. d4 {[%clk 0:02:53]}  exd4 {[%clk 0:02:52]} 5. O-O {[%clk 0:02:54]}  Bc5 {[%clk 0:02:51]} 6. e5 {[%clk 0:02:53]}  d5 {[%clk 0:02:52]} 7. exf6 {[%clk 0:02:52]}  dxc4 {[%clk 0:02:53]} 8. Re1+ {[%clk 0:02:51]}  Be6 {[%clk 0:02:53]} 9. fxg7 {[%clk 0:02:51]}  Rg8 {[%clk 0:02:53]} 10. Bg5 {[%clk 0:02:51]}  Be7 {[%clk 0:02:51]} 11. Bxe7 {[%clk 0:02:49]}  Kxe7 {[%clk 0:02:24]} 12. Nh4 {[%clk 0:02:40]}  Qd5 {[%clk 0:02:14]} 13. Nc3 {[%clk 0:02:18]}  Qg5 {[%clk 0:02:13]} 14. Nf3 {[%clk 0:02:17]}  Qxg7 {[%clk 0:02:13]} 15. Nd5+ {[%clk 0:02:14]}  Kd6 {[%clk 0:02:08]} 16. Nf4 {[%clk 0:02:11]}  Bd5 {[%clk 0:01:32]} 17. g3 {[%clk 0:01:58]}  Rae8 {[%clk 0:01:27]} 18. Nh4 {[%clk 0:01:40]}  Rxe1+ {[%clk 0:01:10]} 19. Qxe1 {[%clk 0:01:41]}  Qg4 {[%clk 0:01:08]} 20. Kf1 {[%clk 0:01:11]}  Ne5 {[%clk 0:01:02]} 21. Rd1 {[%clk 0:00:48]}  c5 {[%clk 0:00:37]} 22. b4 {[%clk 0:00:40]}  Nf3 {[%clk 0:00:14]} 23. bxc5+ {[%clk 0:00:34]}  Kc6 {[%clk 0:00:13]} 24. Nxf3 {[%clk 0:00:09]}  Qxf3 {[%clk 0:00:14]} 25. Nxd5 {[%clk 0:00:03]}  Qh1+ {[%clk 0:00:13]} 26. Ke2 {[%clk 0:00:03]}  Qxd5 {[%clk 0:00:14]} 27. Qa5 {[%clk 0:00:02]}  Qxc5 {[%clk 0:00:09]} 28. Qa4+ {[%clk 0:00:02]}  b5 {[%clk 0:00:07]} 29. Qa6+ {[%clk 0:00:02]}  Qb6 {[%clk 0:00:07]} 30. Qa3 {[%clk 0:00:02]}  Re8+ {[%clk 0:00:06]} 31. Kf1 {[%clk 0:00:03]}  a5 {[%clk 0:00:00]} 32. Qf3+ {[%clk 0:00:03]} 1-0


[Site "https://www.chess.com"]

[Event "Titled Tuesday Blitz June 27 Early 2023"]
[White "Biriukov, Ilja"]
[Black "Berezin, Viktor"]
[WhiteFideId "4113373"]
[BlackFideId "14107872"]
[WhiteElo "2314"]
[BlackElo "2515"]
[Result "0-1"]
[Round "4"]
[TimeControl "180+2"]
[Date "2023.06.27"]
[WhiteClock "0:00:00"]
[BlackClock "0:00:09"]
[Board "170"]

1. c4 {[%clk 0:03:00]}  Nf6 {[%clk 0:02:53]} 2. Nc3 {[%clk 0:03:00]}  g6 {[%clk 0:02:52]} 3. d4 {[%clk 0:02:58]}  Bg7 {[%clk 0:02:52]} 4. Nf3 {[%clk 0:02:58]}  O-O {[%clk 0:02:53]} 5. Bg5 {[%clk 0:02:58]}  d6 {[%clk 0:02:53]} 6. e3 {[%clk 0:02:58]}  c6 {[%clk 0:02:49]} 7. Be2 {[%clk 0:02:57]}  Nbd7 {[%clk 0:02:48]} 8. O-O {[%clk 0:02:57]}  e5 {[%clk 0:02:48]} 9. h3 {[%clk 0:02:55]}  Qc7 {[%clk 0:02:45]} 10. Qc2 {[%clk 0:02:54]}  h6 {[%clk 0:02:45]} 11. Bh4 {[%clk 0:02:53]}  Re8 {[%clk 0:02:45]} 12. Rad1 {[%clk 0:02:46]}  Nf8 {[%clk 0:02:27]} 13. c5 {[%clk 0:02:37]}  exd4 {[%clk 0:02:16]} 14. cxd6 {[%clk 0:02:31]}  Qxd6 {[%clk 0:02:17]} 15. Bg3 {[%clk 0:02:18]}  Qc5 {[%clk 0:02:09]} 16. Nxd4 {[%clk 0:02:06]}  Ne6 {[%clk 0:02:07]} 17. Nb3 {[%clk 0:02:02]}  Qb6 {[%clk 0:02:07]} 18. Na4 {[%clk 0:01:49]}  Qb4 {[%clk 0:02:06]} 19. Nac5 {[%clk 0:01:45]}  Nxc5 {[%clk 0:02:04]} 20. Nxc5 {[%clk 0:01:44]}  Bf5 {[%clk 0:02:02]} 21. Bd3 {[%clk 0:01:33]}  Bxd3 {[%clk 0:01:53]} 22. Rxd3 {[%clk 0:01:31]}  b6 {[%clk 0:01:43]} 23. Nb3 {[%clk 0:01:24]}  c5 {[%clk 0:01:40]} 24. a3 {[%clk 0:01:19]}  Qa4 {[%clk 0:01:37]} 25. Na1 {[%clk 0:01:14]}  Qb5 {[%clk 0:01:31]} 26. Rfd1 {[%clk 0:01:11]}  Ne4 {[%clk 0:01:29]} 27. Rb3 {[%clk 0:01:00]}  Qc6 {[%clk 0:01:23]} 28. Bf4 {[%clk 0:00:59]}  b5 {[%clk 0:01:07]} 29. Rbd3 {[%clk 0:00:58]}  c4 {[%clk 0:01:05]} 30. Rd7 {[%clk 0:00:55]}  Qf6 {[%clk 0:00:48]} 31. f3 {[%clk 0:00:46]}  Nc5 {[%clk 0:00:41]} 32. R7d2 {[%clk 0:00:45]}  Nd3 {[%clk 0:00:40]} 33. b3 {[%clk 0:00:37]}  Nxf4 {[%clk 0:00:33]} 34. exf4 {[%clk 0:00:36]}  Qxf4 {[%clk 0:00:34]} 35. bxc4 {[%clk 0:00:35]}  bxc4 {[%clk 0:00:35]} 36. Re2 {[%clk 0:00:10]}  Bd4+ {[%clk 0:00:23]} 37. Kf1 {[%clk 0:00:08]}  Bb6 {[%clk 0:00:15]} 38. Re4 {[%clk 0:00:07]}  Qh2 {[%clk 0:00:13]} 39. Rde1 {[%clk 0:00:05]}  Qg1+ {[%clk 0:00:13]} 40. Ke2 {[%clk 0:00:05]}  Qxg2+ {[%clk 0:00:12]} 41. Kd1 {[%clk 0:00:05]}  Qxf3+ {[%clk 0:00:12]} 42. Kc1 {[%clk 0:00:04]}  Qxa3+ {[%clk 0:00:11]} 43. Kb1 {[%clk 0:00:04]}  Qb4+ {[%clk 0:00:11]} 44. Kc1 {[%clk 0:00:04]}  Qxe1+ {[%clk 0:00:08]} 45. Rxe1 {[%clk 0:00:03]}  Rxe1+ {[%clk 0:00:09]} 46. Kd2 {[%clk 0:00:00]}  Ba5+ {[%clk 0:00:09]} 0-1


[Site "https://www.chess.com"]

[Event "Titled Tuesday Blitz June 27 Early 2023"]
[White "Mikhaylova, Irina"]
[Black "Matyukov, Petr"]
[WhiteFideId "4109040"]
[BlackFideId "4103688"]
[WhiteElo "2299"]
[BlackElo "2509"]
[Result "1/2-1/2"]
[Round "4"]
[TimeControl "180+2"]
[Date "2023.06.27"]
[WhiteClock "0:00:49"]
[BlackClock "0:00:50"]
[Board "173"]

1. d4 {[%clk 0:03:00]}  Nf6 {[%clk 0:02:58]} 2. Nf3 {[%clk 0:03:01]}  e6 {[%clk 0:02:58]} 3. c4 {[%clk 0:03:01]}  b6 {[%clk 0:02:58]} 4. a3 {[%clk 0:03:01]}  Bb7 {[%clk 0:02:58]} 5. Nc3 {[%clk 0:03:01]}  d5 {[%clk 0:02:58]} 6. cxd5 {[%clk 0:03:01]}  Nxd5 {[%clk 0:02:59]} 7. Bd2 {[%clk 0:03:01]}  Be7 {[%clk 0:02:57]} 8. Qc2 {[%clk 0:03:01]}  O-O {[%clk 0:02:56]} 9. e4 {[%clk 0:03:02]}  Nf6 {[%clk 0:02:54]} 10. Bd3 {[%clk 0:03:01]}  h6 {[%clk 0:02:53]} 11. Rd1 {[%clk 0:02:54]}  Nc6 {[%clk 0:02:48]} 12. e5 {[%clk 0:02:03]}  Ng4 {[%clk 0:02:08]} 13. Be3 {[%clk 0:01:38]}  Nxe3 {[%clk 0:01:46]} 14. fxe3 {[%clk 0:01:38]}  Bh4+ {[%clk 0:01:35]} 15. Nxh4 {[%clk 0:01:20]}  Qxh4+ {[%clk 0:01:36]} 16. Qf2 {[%clk 0:01:20]}  Qg5 {[%clk 0:01:08]} 17. Ne4 {[%clk 0:01:10]}  Qh5 {[%clk 0:01:00]} 18. Be2 {[%clk 0:00:49]}  Qg6 {[%clk 0:00:50]} 19. Bd3 {[%clk 0:00:49]}  Qh5 {[%clk 0:00:50]} 20. Be2 {[%clk 0:00:49]}  Qg6 {[%clk 0:00:50]} 21. Bd3 {[%clk 0:00:49]}  Qh5 {[%clk 0:00:50]} 1/2-1/2


[Site "https://www.chess.com"]

[Event "Titled Tuesday Blitz June 27 Early 2023"]
[White "Sarkar, Justin"]
[Black "Cesar Maestre, Bernardo"]
[WhiteFideId "2010011"]
[BlackFideId "24542547"]
[WhiteElo "2271"]
[BlackElo "2503"]
[Result "1-0"]
[Round "4"]
[TimeControl "180+2"]
[Date "2023.06.27"]
[WhiteClock "0:00:03"]
[BlackClock "0:00:14"]
[Board "178"]

1. e4 {[%clk 0:02:56]}  c6 {[%clk 0:02:58]} 2. d4 {[%clk 0:02:48]}  d5 {[%clk 0:02:58]} 3. e5 {[%clk 0:02:46]}  Bf5 {[%clk 0:02:55]} 4. g4 {[%clk 0:02:39]}  Bg6 {[%clk 0:02:53]} 5. e6 {[%clk 0:02:30]}  fxe6 {[%clk 0:02:49]} 6. Bd3 {[%clk 0:01:57]}  Bxd3 {[%clk 0:02:47]} 7. Qxd3 {[%clk 0:01:57]}  e5 {[%clk 0:02:47]} 8. dxe5 {[%clk 0:01:56]}  e6 {[%clk 0:02:45]} 9. f4 {[%clk 0:01:48]}  Qh4+ {[%clk 0:02:42]} 10. Qg3 {[%clk 0:01:47]}  Be7 {[%clk 0:02:36]} 11. Nf3 {[%clk 0:01:43]}  Qxg3+ {[%clk 0:02:36]} 12. hxg3 {[%clk 0:01:43]}  Nh6 {[%clk 0:02:36]} 13. g5 {[%clk 0:01:35]}  Nf5 {[%clk 0:02:36]} 14. Rh3 {[%clk 0:01:29]}  c5 {[%clk 0:02:35]} 15. g4 {[%clk 0:01:26]}  Nd4 {[%clk 0:02:35]} 16. Nxd4 {[%clk 0:01:25]}  cxd4 {[%clk 0:02:36]} 17. Nd2 {[%clk 0:01:20]}  Nc6 {[%clk 0:02:32]} 18. Nf3 {[%clk 0:01:08]}  Rc8 {[%clk 0:02:10]} 19. Bd2 {[%clk 0:01:04]}  Nb4 {[%clk 0:02:01]} 20. Nxd4 {[%clk 0:00:37]}  Nxc2+ {[%clk 0:01:59]} 21. Nxc2 {[%clk 0:00:36]}  Rxc2 {[%clk 0:02:00]} 22. Rc1 {[%clk 0:00:10]}  Rxc1+ {[%clk 0:01:56]} 23. Bxc1 {[%clk 0:00:10]}  Kd7 {[%clk 0:01:51]} 24. g6 {[%clk 0:00:07]}  h6 {[%clk 0:01:45]} 25. f5 {[%clk 0:00:07]}  Rc8 {[%clk 0:01:37]} 26. Bd2 {[%clk 0:00:07]}  Rc4 {[%clk 0:01:36]} 27. f6 {[%clk 0:00:02]}  gxf6 {[%clk 0:01:31]} 28. g7 {[%clk 0:00:02]}  Rxg4 {[%clk 0:01:28]} 29. Bxh6 {[%clk 0:00:02]}  fxe5 {[%clk 0:01:26]} 30. Rf3 {[%clk 0:00:02]}  Bh4+ {[%clk 0:01:01]} 31. Kf1 {[%clk 0:00:02]}  e4 {[%clk 0:00:51]} 32. Rf4 {[%clk 0:00:02]}  Rxg7 {[%clk 0:00:46]} 33. Bxg7 {[%clk 0:00:01]}  Bg5 {[%clk 0:00:47]} 34. Rf7+ {[%clk 0:00:01]}  Kc6 {[%clk 0:00:46]} 35. Ke2 {[%clk 0:00:02]}  Bc1 {[%clk 0:00:43]} 36. Be5 {[%clk 0:00:02]}  Bg5 {[%clk 0:00:41]} 37. Rc7+ {[%clk 0:00:02]}  Kb6 {[%clk 0:00:42]} 38. Rd7 {[%clk 0:00:02]}  Kc5 {[%clk 0:00:38]} 39. Rxb7 {[%clk 0:00:02]}  d4 {[%clk 0:00:38]} 40. Rd7 {[%clk 0:00:02]}  d3+ {[%clk 0:00:38]} 41. Kd1 {[%clk 0:00:02]}  Bh4 {[%clk 0:00:27]} 42. Rd4 {[%clk 0:00:02]}  Be7 {[%clk 0:00:19]} 43. Rxe4 {[%clk 0:00:02]}  Kd5 {[%clk 0:00:20]} 44. Re3 {[%clk 0:00:02]}  Bc5 {[%clk 0:00:20]} 45. Re1 {[%clk 0:00:02]}  Bb4 {[%clk 0:00:20]} 46. Bc3 {[%clk 0:00:03]}  Bc5 {[%clk 0:00:20]} 47. Rf1 {[%clk 0:00:03]}  e5 {[%clk 0:00:21]} 48. Rf5 {[%clk 0:00:02]}  Bd6 {[%clk 0:00:21]} 49. Rh5 {[%clk 0:00:03]}  Ke4 {[%clk 0:00:20]} 50. Rh4+ {[%clk 0:00:03]}  Kd5 {[%clk 0:00:21]} 51. Rg4 {[%clk 0:00:02]}  e4 {[%clk 0:00:21]} 52. Bd2 {[%clk 0:00:02]}  Kd4 {[%clk 0:00:22]} 53. Rh4 {[%clk 0:00:02]}  Bg3 {[%clk 0:00:21]} 54. Rh3 {[%clk 0:00:02]}  Bf2 {[%clk 0:00:21]} 55. b4 {[%clk 0:00:02]}  e3 {[%clk 0:00:20]} 56. Bxe3+ {[%clk 0:00:02]}  Bxe3 {[%clk 0:00:21]} 57. Rh7 {[%clk 0:00:02]}  Kc4 {[%clk 0:00:21]} 58. a3 {[%clk 0:00:02]}  Kb3 {[%clk 0:00:21]} 59. Rh3 {[%clk 0:00:02]}  Bb6 {[%clk 0:00:17]} 60. Rxd3+ {[%clk 0:00:02]}  Kb2 {[%clk 0:00:18]} 61. Kd2 {[%clk 0:00:02]}  a5 {[%clk 0:00:17]} 62. bxa5 {[%clk 0:00:02]}  Bxa5+ {[%clk 0:00:17]} 63. Ke2 {[%clk 0:00:02]}  Bb6 {[%clk 0:00:16]} 64. a4 {[%clk 0:00:02]}  Ba5 {[%clk 0:00:16]} 65. Kf3 {[%clk 0:00:02]}  Kc2 {[%clk 0:00:16]} 66. Ke4 {[%clk 0:00:02]}  Bb6 {[%clk 0:00:16]} 67. Rh3 {[%clk 0:00:03]}  Ba5 {[%clk 0:00:16]} 68. Kd5 {[%clk 0:00:03]}  Kb2 {[%clk 0:00:14]} 69. Kc5 {[%clk 0:00:03]} 1-0


[Site "https://www.chess.com"]

[Event "Titled Tuesday Blitz June 27 Early 2023"]
[White "Bolanos, Fernando"]
[Black "Pham, Le Thao Nguyen"]
[WhiteFideId "3304094"]
[BlackFideId "12401226"]
[WhiteElo "2270"]
[BlackElo "2499"]
[Result "0-1"]
[Round "4"]
[TimeControl "180+2"]
[Date "2023.06.27"]
[WhiteClock "0:00:26"]
[BlackClock "0:00:15"]
[Board "179"]

1. e4 {[%clk 0:02:59]}  c5 {[%clk 0:02:57]} 2. Nf3 {[%clk 0:02:59]}  e6 {[%clk 0:02:56]} 3. d4 {[%clk 0:02:59]}  cxd4 {[%clk 0:02:56]} 4. Nxd4 {[%clk 0:03:00]}  a6 {[%clk 0:02:57]} 5. c4 {[%clk 0:03:01]}  Nf6 {[%clk 0:02:55]} 6. Nc3 {[%clk 0:03:02]}  Bb4 {[%clk 0:02:55]} 7. Qd3 {[%clk 0:03:02]}  Qc7 {[%clk 0:02:40]} 8. Be2 {[%clk 0:03:01]}  b6 {[%clk 0:02:36]} 9. f3 {[%clk 0:02:58]}  Bb7 {[%clk 0:02:31]} 10. a3 {[%clk 0:02:58]}  Be7 {[%clk 0:02:16]} 11. Be3 {[%clk 0:02:55]}  Nc6 {[%clk 0:02:04]} 12. O-O-O {[%clk 0:02:54]}  Ne5 {[%clk 0:02:00]} 13. Qc2 {[%clk 0:02:52]}  Rc8 {[%clk 0:01:54]} 14. Qb3 {[%clk 0:02:09]}  O-O {[%clk 0:01:31]} 15. Kb1 {[%clk 0:02:09]}  Nxc4 {[%clk 0:01:24]} 16. Bxc4 {[%clk 0:02:09]}  Qxc4 {[%clk 0:01:25]} 17. Qxb6 {[%clk 0:02:10]}  Bxa3 {[%clk 0:01:19]} 18. Ncb5 {[%clk 0:01:08]}  axb5 {[%clk 0:00:53]} 19. Qxb7 {[%clk 0:01:08]}  Rb8 {[%clk 0:00:30]} 20. Qa6 {[%clk 0:01:01]}  Bc5 {[%clk 0:00:24]} 21. Qa2 {[%clk 0:00:57]}  d5 {[%clk 0:00:20]} 22. exd5 {[%clk 0:00:52]}  Nxd5 {[%clk 0:00:19]} 23. Bf2 {[%clk 0:00:51]}  Rfc8 {[%clk 0:00:15]} 24. Rd2 {[%clk 0:00:37]}  Bb4 {[%clk 0:00:14]} 25. Re2 {[%clk 0:00:36]}  Qd3+ {[%clk 0:00:14]} 26. Ka1 {[%clk 0:00:36]}  Nc3 {[%clk 0:00:12]} 27. Re3 {[%clk 0:00:31]}  Qxe3 {[%clk 0:00:11]} 28. Bxe3 {[%clk 0:00:32]}  Nxa2 {[%clk 0:00:12]} 29. Kxa2 {[%clk 0:00:32]}  Bc5 {[%clk 0:00:12]} 30. Kb3 {[%clk 0:00:31]}  Rd8 {[%clk 0:00:12]} 31. Nc6 {[%clk 0:00:29]}  Bxe3 {[%clk 0:00:13]} 32. Nxb8 {[%clk 0:00:29]}  Rxb8 {[%clk 0:00:12]} 33. Rd1 {[%clk 0:00:30]}  e5 {[%clk 0:00:12]} 34. Rd7 {[%clk 0:00:30]}  Bd4 {[%clk 0:00:12]} 35. Kc2 {[%clk 0:00:30]}  g6 {[%clk 0:00:13]} 36. b3 {[%clk 0:00:30]}  b4 {[%clk 0:00:13]} 37. Rc7 {[%clk 0:00:30]}  Bc3 {[%clk 0:00:14]} 38. Rd7 {[%clk 0:00:29]}  Ra8 {[%clk 0:00:14]} 39. Kd3 {[%clk 0:00:28]}  Ra2 {[%clk 0:00:14]} 40. g4 {[%clk 0:00:28]}  Kg7 {[%clk 0:00:15]} 41. h4 {[%clk 0:00:26]}  Rd2+ {[%clk 0:00:15]} 42. Ke4 {[%clk 0:00:26]}  Rxd7 {[%clk 0:00:16]} 43. h5 {[%clk 0:00:25]}  gxh5 {[%clk 0:00:15]} 44. gxh5 {[%clk 0:00:25]}  Rd4+ {[%clk 0:00:16]} 45. Kf5 {[%clk 0:00:26]}  Rf4+ {[%clk 0:00:14]} 46. Kg5 {[%clk 0:00:26]}  h6# {[%clk 0:00:15]} 0-1


[Site "https://www.chess.com"]

[Event "Titled Tuesday Blitz June 27 Early 2023"]
[White "EdmundPlayer"]
[Black "Erzhanov, Arman"]
[BlackFideId "4138821"]
[WhiteElo "2266"]
[BlackElo "2497"]
[Result "0-1"]
[Round "4"]
[TimeControl "180+2"]
[Date "2023.06.27"]
[WhiteClock "0:00:40"]
[BlackClock "0:01:58"]
[Board "180"]

1. e4 {[%clk 0:03:00]}  d6 {[%clk 0:02:59]} 2. d4 {[%clk 0:03:00]}  Nf6 {[%clk 0:02:59]} 3. Nc3 {[%clk 0:02:59]}  c6 {[%clk 0:03:00]} 4. Nf3 {[%clk 0:02:44]}  Bg4 {[%clk 0:02:54]} 5. h3 {[%clk 0:02:37]}  Bxf3 {[%clk 0:02:51]} 6. Qxf3 {[%clk 0:02:38]}  e6 {[%clk 0:02:50]} 7. a4 {[%clk 0:02:16]}  d5 {[%clk 0:02:50]} 8. Bg5 {[%clk 0:02:07]}  Be7 {[%clk 0:02:44]} 9. e5 {[%clk 0:02:03]}  Nfd7 {[%clk 0:02:41]} 10. Bxe7 {[%clk 0:02:02]}  Qxe7 {[%clk 0:02:33]} 11. Nd1 {[%clk 0:01:53]}  O-O {[%clk 0:02:27]} 12. Bd3 {[%clk 0:01:51]}  c5 {[%clk 0:02:26]} 13. c3 {[%clk 0:01:19]}  Nc6 {[%clk 0:02:21]} 14. O-O {[%clk 0:01:08]}  cxd4 {[%clk 0:02:17]} 15. cxd4 {[%clk 0:01:08]}  Nxd4 {[%clk 0:02:08]} 16. Qg3 {[%clk 0:00:56]}  Nc5 {[%clk 0:02:01]} 17. Bb1 {[%clk 0:00:40]}  Ne2+ {[%clk 0:01:58]} 0-1


[Site "https://www.chess.com"]

[Event "Titled Tuesday Blitz June 27 Early 2023"]
[White "Baches Garcia, Guillermo"]
[Black "Sariego Figueredo, Wilfredo"]
[WhiteFideId "2209764"]
[BlackFideId "3500080"]
[WhiteElo "2485"]
[BlackElo "2204"]
[Result "1/2-1/2"]
[Round "4"]
[TimeControl "180+2"]
[Date "2023.06.27"]
[WhiteClock "0:02:07"]
[BlackClock "0:02:07"]
[Board "185"]

1. e4 {[%clk 0:03:00]}  c5 {[%clk 0:03:00]} 2. Nf3 {[%clk 0:03:01]}  a6 {[%clk 0:03:01]} 3. c4 {[%clk 0:03:00]}  Nc6 {[%clk 0:03:01]} 4. Nc3 {[%clk 0:03:00]}  e5 {[%clk 0:03:01]} 5. Be2 {[%clk 0:02:57]}  Nf6 {[%clk 0:03:01]} 6. d3 {[%clk 0:02:57]}  d6 {[%clk 0:03:01]} 7. O-O {[%clk 0:02:56]}  Be7 {[%clk 0:03:01]} 8. a3 {[%clk 0:02:56]}  O-O {[%clk 0:02:58]} 9. Rb1 {[%clk 0:02:56]}  a5 {[%clk 0:02:57]} 10. Bg5 {[%clk 0:02:47]}  Bg4 {[%clk 0:02:54]} 11. Bxf6 {[%clk 0:02:40]}  Bxf6 {[%clk 0:02:55]} 12. Nd5 {[%clk 0:02:40]}  Bxf3 {[%clk 0:02:53]} 13. Bxf3 {[%clk 0:02:39]}  Nd4 {[%clk 0:02:52]} 14. b4 {[%clk 0:02:35]}  axb4 {[%clk 0:02:49]} 15. axb4 {[%clk 0:02:35]}  b6 {[%clk 0:02:48]} 16. Bg4 {[%clk 0:02:28]}  Ra2 {[%clk 0:02:40]} 17. g3 {[%clk 0:02:20]}  g6 {[%clk 0:02:21]} 18. Ra1 {[%clk 0:02:11]}  Rb2 {[%clk 0:02:08]} 19. Rb1 {[%clk 0:02:07]}  Ra2 {[%clk 0:02:07]} 20. Ra1 {[%clk 0:02:07]}  Rb2 {[%clk 0:02:07]} 21. Rb1 {[%clk 0:02:07]}  Ra2 {[%clk 0:02:07]} 1/2-1/2


[Site "https://www.chess.com"]